fUST/lending_fUST_20250818
["ID","MTS","AMOUNT","RATE_DAILY","PERIOD"]
[380013067,1755473446566,-298.742321,0.00020173,2]
[380013068,1755473446575,-298.742321,0.00020173,2]
[380013069,1755473446681,-196.648819,0.00020173,2]
[380013070,1755473446690,-313.528886,0.00020173,2]
[380013071,1755473446699,-313.528886,0.00020173,2]
[380013072,1755473446709,-929.54808343,0.00020175,2]
[380013073,1755473446718,-245.127732,0.00020187,2]
[380013074,1755473446727,-500.0,0.0002019,2]
[380013075,1755473446737,-500.0,0.0002019,10]
[380013076,1755473446746,-2691.16290616,0.00020213,2]
[380013077,1755473446756,-500.0,0.00020221,2]
[380013078,1755473446766,-178.0,0.00020228,2]
[380013079,1755473446775,-178.0,0.00020243,2]
[380013080,1755473446785,-178.0,0.00020254,2]
[380013081,1755473446794,-483.16,0.00020273,2]
[380013082,1755473446804,-480.0,0.00020273,2]
[380013083,1755473446814,-151.0,0.00020273,2]
[380013084,1755473446823,-296.414646,0.00020273,2]
[380013085,1755473446832,-296.414646,0.00020273,2]
[380013086,1755473446842,-193.32584484,0.00020273,2]
[380013087,1755473446851,-480.0,0.00020273,2]
[380013088,1755473446861,-480.0,0.00020273,2]
[380013089,1755473446870,-428.59793,0.00020273,2]
[380013090,1755473446879,-679.1,0.00020273,2]
[380013091,1755473446889,-428.59793,0.00020273,2]
[380013092,1755473446898,-151.0,0.00020273,2]
[380013093,1755473446907,-249.558661,0.00020273,2]
[380013094,1755473446917,-2456.53,0.00020273,2]
[380013095,1755473446927,-480.0,0.00020273,2]
[380013096,1755473446936,-480.0,0.00020273,2]
[380013097,1755473446945,-480.0,0.00020273,2]
[380013098,1755473446954,-480.0,0.00020273,2]
[380013099,1755473446965,-480.0,0.00020273,2]
[380013100,1755473446974,-480.0,0.00020273,2]
[380013101,1755473446983,-480.0,0.00020273,2]
[380013102,1755473446992,-824.92,0.00020273,2]
[380013103,1755473447002,-498.16,0.00020273,2]
[380013104,1755473447011,-480.0,0.00020273,2]
[380013105,1755473447020,-444.37,0.00020273,2]
[380013106,1755473447030,-1562.46,0.00020273,2]
[380013107,1755473447039,-1505.1,0.00020273,2]
[380013108,1755473447048,-480.0,0.00020273,2]
[380013109,1755473447057,-151.0,0.000203,3]
[380013110,1755473447066,-178.0,0.00020313,2]
[380013111,1755473447076,-475.0,0.00020343,2]
[380013112,1755473447086,-151.0,0.00020343,2]
[380013113,1755473447096,-307.59546635,0.00020362,2]
[380013114,1755473447105,-500.0,0.00020362,2]
[380013115,1755473447114,-500.0,0.00020362,2]
[380013116,1755473447123,-151.0,0.00020362,2]
[380013117,1755473447133,-151.0,0.00020381,2]
[380013118,1755473447142,-151.0,0.00020381,2]
[380013119,1755473447152,-296.102351,0.00020381,2]
[380013120,1755473447166,-296.102351,0.00020381,2]
[380013121,1755473447175,-151.0,0.00020381,2]
[380013122,1755473447184,-500.0,0.00020383,2]
[380013123,1755473447194,-500.0,0.0002039,10]
[380013124,1755473447204,-1000.0,0.00020399,2]
[380013125,1755473447214,-1000.0,0.00020399,2]
[380013126,1755473447223,-381.0,0.00020401,2]
[380013127,1755473447233,-151.0,0.00020403,2]
[380013128,1755473447243,-151.0,0.00020403,2]
[380013129,1755473447252,-298.742321,0.00020403,2]
[380013130,1755473447261,-298.742321,0.00020403,2]
[380013131,1755473447270,-196.648819,0.00020403,2]
[380013132,1755473447279,-313.528886,0.00020403,2]
[380013133,1755473447290,-313.528886,0.00020403,2]
[380013134,1755473447299,-151.0,0.00020403,2]
[380013135,1755473447308,-151.0,0.00020403,2]
[380013136,1755473447317,-10360.60387739,0.00020403,2]
[380013137,1755473447327,-160.0,0.00020413,2]
[380013138,1755473447337,-215.71995163,0.00020413,2]
[380013139,1755473447346,-12682.46447135,0.00020413,2]
[380013140,1755473447355,-417.15472785,0.00020413,2]
[380013141,1755473447364,-528.48506731,0.00020413,2]
[380013142,1755473447373,-843.71309931,0.00020413,2]
[380013143,1755473447382,-160.0,0.00020413,2]
[380013144,1755473447391,-160.0,0.00020413,2]
[380013145,1755473447401,-232.1512529,0.00020413,2]
[380013146,1755473447410,-160.0,0.00020413,2]
[380013147,1755473447419,-160.0,0.00020413,2]
[380013148,1755473447428,-216.83204348,0.00020413,2]
[380013149,1755473447437,-160.0,0.00020413,2]
[380013150,1755473447447,-160.0,0.00020413,2]
[380013151,1755473447456,-160.0,0.00020413,2]
[380013152,1755473447465,-375.77065697,0.00020413,2]
[380013153,1755473447474,-428.59793,0.00020413,2]
[380013154,1755473447483,-428.59793,0.00020413,2]
[380013155,1755473447492,-151.0,0.00020413,2]
[380013156,1755473447501,-160.0,0.00020413,2]
[380013157,1755473447510,-160.0,0.00020413,2]
[380013158,1755473447519,-500.0,0.00020419,2]
[380013159,1755473447527,-151.0,0.0002042,2]
[380013160,1755473447535,-151.0,0.0002042,2]
[380013161,1755473447545,-235.774776,0.0002042,2]
[380013162,1755473447554,-296.102351,0.0002042,2]
[380013163,1755473447564,-296.102351,0.0002042,2]
[380013164,1755473447573,-222.066546,0.0002042,2]
[380013165,1755473447582,-219.168111,0.0002042,2]
[380013166,1755473447591,-296.414646,0.0002042,2]
[380013167,1755473447601,-296.414646,0.0002042,2]
[380013168,1755473447611,-178.0,0.00020444,2]
[380013169,1755473447619,-500.0,0.00020453,2]
[380013170,1755473447628,-500.0,0.00020499,2]
[380013171,1755473447637,-178.0,0.00020503,2]
[380013172,1755473447647,-325.94993229,0.00020521,2]
[380013173,1755473447655,-501.11052222,0.00020521,2]
[380013174,1755473447665,-1000.0,0.00020521,2]
[380013175,1755473447674,-1000.0,0.00020521,2]
[380013176,1755473447683,-1102.38973704,0.00020521,2]
[380013177,1755473447693,-1000.0,0.00020521,2]
[380013178,1755473447701,-1000.0,0.00020521,2]
[380013179,1755473447712,-1000.0,0.00020521,2]
[380013180,1755473447720,-1000.0,0.00020521,2]
[380013181,1755473447730,-1000.0,0.00020521,2]
[380013182,1755473447739,-211.74076198,0.00020521,2]
[380013183,1755473447748,-1000.0,0.00020521,2]
[380013184,1755473447757,-658.3190125,0.00020521,2]
[380013185,1755473447767,-500.0,0.00020521,2]
[380013186,1755473447776,-500.0,0.00020535,2]
[380013187,1755473447785,-151.0,0.00020535,2]
[380013188,1755473447795,-18502.69577858,0.00020535,2]
[380013189,1755473447804,-151.0,0.00020536,2]
[380013190,1755473447814,-151.0,0.00020536,2]
[380013191,1755473447823,-296.102351,0.00020536,2]
[380013192,1755473447833,-296.102351,0.00020536,2]
[380013193,1755473447842,-151.0,0.00020536,2]
[380013194,1755473447851,-296.414646,0.00020536,2]
[380013195,1755473447860,-296.414646,0.00020536,2]
[380013196,1755473447870,-151.0,0.00020536,2]
[380013197,1755473447879,-151.0,0.00020536,2]
[380013198,1755473447888,-800.0,0.00020537,2]
[380013199,1755473447897,-1884.56,0.00020538,3]
[380013200,1755473447906,-942.28,0.00020538,3]
[380013201,1755473447916,-471.14,0.00020538,3]
[380013202,1755473447925,-12682.46447135,0.00020538,3]
[380013203,1755473447935,-160.0,0.00020538,3]
[380013204,1755473447944,-160.0,0.00020538,3]
[380013205,1755473447953,-500.0,0.00020546,2]
[380013206,1755473447963,-467.7977665,0.00020547,2]
[380013207,1755473447972,-169.01462102,0.00020547,2]
[380013208,1755473447981,-480.0,0.00020547,2]
[380013209,1755473447990,-270.00753,0.00020547,2]
[380013210,1755473448000,-298.742321,0.00020547,2]
[380013211,1755473448010,-298.742321,0.00020547,2]
[380013212,1755473448019,-196.648819,0.00020547,2]
[380013213,1755473448028,-480.0,0.00020547,2]
[380013214,1755473448037,-313.528886,0.00020547,2]
[380013215,1755473448047,-480.0,0.00020547,2]
[380013216,1755473448057,-313.528886,0.00020547,2]
[380013217,1755473448066,-428.59793,0.00020547,2]
[380013218,1755473448075,-679.1,0.00020547,2]
[380013219,1755473448085,-428.59793,0.00020547,2]
[380013220,1755473448095,-173.59257,0.00020547,2]
[380013221,1755473448106,-2456.53,0.00020547,2]
[380013222,1755473448116,-480.0,0.00020547,2]
[380013223,1755473448125,-491.13436017,0.00020547,2]
[380013224,1755473448135,-480.0,0.00020547,2]
[380013225,1755473448144,-480.0,0.00020547,2]
[380013226,1755473448156,-480.0,0.00020547,2]
[380013227,1755473448170,-824.92,0.00020547,2]
[380013228,1755473448180,-498.16,0.00020547,2]
[380013229,1755473448190,-480.0,0.00020547,2]
[380013230,1755473448199,-1562.46,0.00020547,2]
[380013231,1755473448208,-1505.1,0.00020547,2]
[380013232,1755473448218,-480.0,0.00020547,2]
[380013233,1755473448227,-1500.0,0.00020568,2]
[380013234,1755473448237,-1500.0,0.00020568,2]
[380013235,1755473448247,-1008.91441769,0.00020576,2]
[380013236,1755473448256,-500.0,0.00020576,2]
[380013237,1755473448266,-1000.0,0.00020576,2]
[380013238,1755473448276,-1000.0,0.00020576,2]
[380013239,1755473448285,-475.0,0.00020617,2]
[380013240,1755473448294,-292.0,0.00020617,2]
[380013241,1755473448304,-800.0,0.00020626,2]
[380013242,1755473448313,-178.0,0.00020651,2]
[380013243,1755473448321,-800.0,0.00020651,2]
[380013244,1755473448331,-800.0,0.00020663,2]
[380013245,1755473448340,-800.0,0.00020672,2]
[380013246,1755473448349,-151.0,0.00020708,2]
[380013247,1755473448358,-296.102351,0.00020708,2]
[380013248,1755473448368,-296.102351,0.00020708,2]
[380013249,1755473448377,-151.0,0.00020708,2]
[380013250,1755473448387,-1133.384,0.00020713,2]
[380013251,1755473448396,-179.552,0.00020713,2]
[380013252,1755473448405,-381.0,0.00020713,2]
[380013253,1755473448414,-800.0,0.00020714,2]
[380013254,1755473448423,-432.7,0.00020716,2]
[380013255,1755473448432,-381.0,0.00020717,2]
[380013256,1755473448441,-296.414646,0.00020717,2]
[380013257,1755473448450,-296.414646,0.00020717,2]
[380013258,1755473448460,-160.0,0.00020737,2]
[380013259,1755473448469,-800.0,0.00020741,2]
[380013260,1755473448478,-500.0,0.0002075,2]
[380013261,1755473448487,-500.0,0.0002075,2]
[380013262,1755473448497,-158.60123121,0.0002075,2]
[380013263,1755473448506,-500.0,0.0002075,2]
[380013264,1755473448515,-500.0,0.0002075,2]
[380013265,1755473448524,-158.61775077,0.0002075,2]
[380013266,1755473448534,-158.62313276,0.0002075,2]
[380013267,1755473448543,-500.0,0.0002075,2]
[380013268,1755473448552,-258.67006152,0.0002075,2]
[380013269,1755473448561,-400.51360892,0.0002075,2]
[380013270,1755473448570,-158.61449762,0.0002075,2]
[380013271,1755473448579,-160.62292884,0.0002075,2]
[380013272,1755473448589,-500.0,0.0002075,2]
[380013273,1755473448598,-500.0,0.0002075,2]
[380013274,1755473448607,-188.65528262,0.0002075,2]
[380013275,1755473448616,-158.62980632,0.0002075,2]
[380013276,1755473448626,-340.84167788,0.0002075,2]
[380013277,1755473448635,-415.34722731,0.0002075,2]
[380013278,1755473448644,-340.42651408,0.0002075,2]
[380013279,1755473448653,-500.0,0.0002075,2]
[380013280,1755473448662,-500.0,0.0002075,2]
[380013281,1755473448671,-151.0,0.0002075,2]
[380013282,1755473448680,-800.0,0.00020755,2]
[380013283,1755473448690,-245.98,0.0002078,2]
[380013284,1755473448699,-500.0,0.0002079,2]
[380013285,1755473448709,-151.0,0.00020797,2]
[380013286,1755473448719,-134207.80268693,0.000208,2]
[380013287,1755473448815,-3070.49613858,0.000208,2]
[380013288,1755473449031,-315.90885285,0.000208,2]
[380013289,1755473449099,-151.0,0.00019178,2]
[380013290,1755473449108,-1883.169511,0.000208,2]
[380013291,1755473449119,-1156.54014759,0.000208,2]
[380013292,1755473449142,-480.0,0.00019178,2]
[380013293,1755473449151,-18020.0,0.000208,2]
[380013294,1755473449165,-8238.14169087,0.000208,2]
[380013295,1755473469284,480.0,0.00027945,120]
[380013313,1755473702376,220.614958,0.00013699,2]
[380013413,1755474409140,-446.15369234,0.000189,2]
[380013432,1755474522510,500.0,0.00018371,2]
[380013441,1755474602017,1000.0,0.00018,3]
[380013476,1755474632103,-527.88589307,0.00018877,2]
[380013477,1755474632112,-500.36832499,0.000189,2]
[380013482,1755474632162,-1058.02707487,0.000189,2]
[380013484,1755474632171,-446.15369234,0.00018977,2]
[380013486,1755474632181,-2018.37217962,0.00019067,2]
[380013488,1755474632190,-300.0,0.00019077,2]
[380013490,1755474632199,-1200.0,0.00019077,2]
[380013492,1755474632209,-9009.78691244,0.00019078,2]
[380013494,1755474632219,-482.77762677,0.00019165,2]
[380013496,1755474632228,-582.64478163,0.00019165,2]
[380013498,1755474632237,-500.0,0.00019165,2]
[380013500,1755474632248,-500.0,0.00019165,2]
[380013502,1755474632257,-151.0,0.00019166,2]
[380013504,1755474632266,-540.30730396,0.00019166,2]
[380013603,1755474638114,-211.9577337,0.00019067,2]
[380013606,1755474638125,-211.95773369,0.00019078,2]
[380013608,1755474638135,-8691.74571834,0.00019166,2]
[380013610,1755474638146,-574.82880604,0.00019166,2]
[380013613,1755474638166,-961.54334193,0.00019166,2]
[380013658,1755474640256,-4558.20421464,0.00019166,2]
[380013690,1755474683096,209.58421,0.00013699,2]
[380013727,1755475214591,582.86,0.000267,120]
[380013773,1755475310026,500.0,0.00018124,2]
[380013774,1755475314628,568.96963134,0.00017503,2]
[380013795,1755475602711,211.361387,0.00013699,2]
[380013822,1755475833938,-1423.11923843,0.000189,2]
[380013823,1755475833950,-500.0,0.00019078,2]
[380013824,1755475833961,-178.0,0.00019161,2]
[380013826,1755475833971,-1200.0,0.00019161,2]
[380013828,1755475833982,-300.0,0.00019162,2]
[380013831,1755475833993,-300.0,0.00019162,2]
[380013833,1755475834005,-300.0,0.00019162,2]
[380013835,1755475834016,-222.66636135,0.00019163,2]
[380013838,1755475834030,-977.33363865,0.00019163,2]
[380013839,1755475834041,-61.17839359,0.00019178,2]
[380013840,1755475834055,-340.81010698,0.00019178,2]
[380013841,1755475834066,-480.0,0.00019178,2]
[380013842,1755475834076,-480.0,0.00019178,2]
[380013843,1755475834088,-480.0,0.00019178,2]
[380013844,1755475834100,-480.0,0.00019178,2]
[380013845,1755475834111,-480.0,0.00019178,2]
[380013846,1755475834122,-241.09264556,0.00019178,2]
[380013847,1755475834133,-480.0,0.00019178,2]
[380013848,1755475834143,-499.36,0.00019178,2]
[380013849,1755475834154,-480.0,0.00019178,2]
[380013850,1755475834165,-480.0,0.00019178,2]
[380013851,1755475834185,-480.0,0.00019178,2]
[380013852,1755475834198,-359.53150709,0.00019178,2]
[380013855,1755475838998,-239.79967573,0.00019177,2]
[380013856,1755475839009,-120.46849291,0.00019178,2]
[380013857,1755475839020,-480.0,0.00019178,2]
[380013858,1755475839030,-480.0,0.00019178,2]
[380013859,1755475839040,-480.0,0.00019178,2]
[380013860,1755475839052,-480.0,0.00019178,2]
[380013861,1755475839062,-480.0,0.00019178,2]
[380013862,1755475839071,-323.03969031,0.00019178,2]
[380013863,1755475839081,-480.0,0.00019178,2]
[380013880,1755475839257,-480.0,0.00019178,2]
[380013883,1755475839274,-480.0,0.00019178,2]
[380013885,1755475839283,-480.0,0.00019178,2]
[380013887,1755475839292,-480.0,0.00019178,2]
[380013889,1755475839303,-480.0,0.00019178,2]
[380013891,1755475839312,-480.0,0.00019178,2]
[380013893,1755475839321,-480.0,0.00019178,2]
[380013895,1755475839331,-480.0,0.00019178,2]
[380013897,1755475839341,-480.0,0.00019178,2]
[380013899,1755475839350,-480.0,0.00019178,2]
[380013901,1755475839360,-480.0,0.00019178,2]
[380013903,1755475839370,-480.0,0.00019178,2]
[380013905,1755475839380,-480.0,0.00019178,2]
[380013907,1755475839390,-480.0,0.00019178,2]
[380013909,1755475839400,-480.0,0.00019178,2]
[380013911,1755475839410,-480.0,0.00019178,2]
[380013913,1755475839419,-502.88308508,0.00019178,2]
[380013915,1755475839429,-480.0,0.00019178,2]
[380013917,1755475839439,-480.0,0.00019178,2]
[380013919,1755475839449,-480.0,0.00019178,2]
[380013921,1755475839458,-610.65,0.00019178,2]
[380013923,1755475839467,-480.0,0.00019178,2]
[380013925,1755475839478,-480.0,0.00019178,2]
[380013927,1755475839487,-480.0,0.00019178,2]
[380013929,1755475839496,-480.0,0.00019178,2]
[380013931,1755475839506,-480.0,0.00019178,2]
[380013933,1755475839515,-480.0,0.00019178,2]
[380013935,1755475839524,-480.0,0.00019178,2]
[380013937,1755475839536,-480.0,0.00019178,2]
[380013939,1755475839545,-480.0,0.00019178,2]
[380013940,1755475839554,-480.0,0.00019178,2]
[380013942,1755475839564,-480.0,0.00019178,2]
[380013944,1755475839574,-480.0,0.00019178,2]
[380013946,1755475839583,-480.0,0.00019178,2]
[380013948,1755475839593,-480.0,0.00019178,2]
[380013950,1755475839602,-480.0,0.00019178,2]
[380013952,1755475839614,-480.0,0.00019178,2]
[380013954,1755475839625,-480.0,0.00019178,2]
[380013957,1755475839634,-462.88569616,0.00019178,2]
[380013958,1755475839644,-480.0,0.00019178,2]
[380013960,1755475839653,-480.0,0.00019178,2]
[380013962,1755475839664,-480.0,0.00019178,2]
[380013964,1755475839673,-480.0,0.00019178,2]
[380013967,1755475839683,-480.0,0.00019178,2]
[380013968,1755475839694,-480.0,0.00019178,2]
[380013971,1755475839705,-480.0,0.00019178,2]
[380013973,1755475839715,-480.0,0.00019178,2]
[380013974,1755475839726,-480.0,0.00019178,2]
[380013977,1755475839736,-480.0,0.00019178,2]
[380013979,1755475839746,-492.35,0.00019178,2]
[380013981,1755475839755,-172.29,0.00019178,2]
[380013982,1755475839764,-718.89,0.00019178,2]
[380013985,1755475839775,-480.0,0.00019178,2]
[380013986,1755475839785,-463.53734124,0.00019178,2]
[380013988,1755475839794,-1379.68,0.00019178,2]
[380013991,1755475839804,-480.0,0.00019178,2]
[380013992,1755475839813,-2545.22,0.00019178,2]
[380013994,1755475839823,-480.0,0.00019178,2]
[380013996,1755475839832,-440.0,0.00019178,2]
[380013998,1755475839842,-415.54677225,0.00019178,2]
[380014001,1755475839851,-480.0,0.00019178,2]
[380014003,1755475839861,-597.74197553,0.00019178,2]
[380014004,1755475839870,-480.0,0.00019178,2]
[380014006,1755475839880,-480.0,0.00019178,2]
[380014009,1755475839889,-480.0,0.00019178,2]
[380014010,1755475839899,-480.0,0.00019178,2]
[380014013,1755475839908,-616.52,0.00019178,2]
[380014015,1755475839918,-480.0,0.00019178,2]
[380014016,1755475839927,-480.0,0.00019178,2]
[380014019,1755475839937,-480.0,0.00019178,2]
[380014020,1755475839946,-483.42852544,0.00019178,2]
[380014022,1755475839956,-480.0,0.00019178,2]
[380014024,1755475839965,-480.0,0.00019178,2]
[380014026,1755475839978,-480.0,0.00019178,2]
[380014028,1755475839987,-480.0,0.00019178,2]
[380014030,1755475839996,-480.0,0.00019178,2]
[380014032,1755475840006,-480.0,0.00019178,2]
[380014034,1755475840015,-480.0,0.00019178,2]
[380014036,1755475840024,-480.0,0.00019178,2]
[380014038,1755475840033,-480.0,0.00019178,2]
[380014040,1755475840043,-480.0,0.00019178,2]
[380014043,1755475840053,-480.0,0.00019178,2]
[380014045,1755475840063,-480.0,0.00019178,2]
[380014047,1755475840072,-480.0,0.00019178,2]
[380014049,1755475840082,-480.0,0.00019178,2]
[380014051,1755475840091,-756.18,0.00019178,2]
[380014053,1755475840101,-480.0,0.00019178,2]
[380014055,1755475840111,-1432.26,0.00019178,2]
[380014057,1755475840120,-480.0,0.00019178,2]
[380014059,1755475840129,-480.0,0.00019178,2]
[380014061,1755475840138,-551.36,0.00019178,2]
[380014063,1755475840148,-480.0,0.00019178,2]
[380014065,1755475840157,-480.0,0.00019178,2]
[380014067,1755475840167,-480.0,0.00019178,2]
[380014069,1755475840177,-480.0,0.00019178,2]
[380014071,1755475840186,-480.0,0.00019178,2]
[380014073,1755475840195,-480.0,0.00019178,2]
[380014075,1755475840205,-545.8,0.00019178,2]
[380014077,1755475840216,-480.0,0.00019178,2]
[380014079,1755475840226,-480.0,0.00019178,2]
[380014081,1755475840235,-480.0,0.00019178,2]
[380014083,1755475840245,-480.0,0.00019178,2]
[380014085,1755475840255,-500.0,0.00019178,2]
[380014087,1755475840264,-500.0,0.00019178,2]
[380014089,1755475840274,-480.0,0.00019178,2]
[380014091,1755475840283,-500.0,0.00019178,2]
[380014093,1755475840292,-500.0,0.00019178,2]
[380014095,1755475840302,-178.0,0.00019194,2]
[380014098,1755475840312,-500.0,0.00019451,2]
[380014100,1755475840321,-480.0,0.00019452,2]
[380014101,1755475840331,-194.01,0.00019452,2]
[380014104,1755475840340,-480.0,0.00019452,2]
[380014105,1755475840350,-480.0,0.00019452,2]
[380014107,1755475840359,-480.0,0.00019452,2]
[380014109,1755475840368,-396.63,0.00019452,2]
[380014111,1755475840377,-480.0,0.00019452,2]
[380014113,1755475840386,-480.0,0.00019452,2]
[380014115,1755475840396,-480.0,0.00019452,2]
[380014117,1755475840405,-480.0,0.00019452,2]
[380014119,1755475840414,-346.56,0.00019452,2]
[380014121,1755475840423,-584.35,0.00019452,2]
[380014123,1755475840433,-255.8,0.00019452,2]
[380014125,1755475840442,-480.0,0.00019452,2]
[380014127,1755475840451,-718.89,0.00019452,2]
[380014129,1755475840460,-480.0,0.00019452,2]
[380014131,1755475840469,-1379.68,0.00019452,2]
[380014133,1755475840479,-2545.22,0.00019452,2]
[380014135,1755475840488,-480.0,0.00019452,2]
[380014137,1755475840497,-480.0,0.00019452,2]
[380014139,1755475840506,-480.0,0.00019452,2]
[380014141,1755475840516,-480.0,0.00019452,2]
[380014142,1755475840525,-576.12,0.00019452,2]
[380014144,1755475840537,-480.0,0.00019452,2]
[380014146,1755475840546,-480.0,0.00019452,2]
[380014148,1755475840556,-244.27,0.00019452,2]
[380014150,1755475840565,-480.0,0.00019452,2]
[380014152,1755475840575,-756.18,0.00019452,2]
[380014154,1755475840584,-1432.26,0.00019452,2]
[380014156,1755475840594,-480.0,0.00019452,2]
[380014158,1755475840604,-480.0,0.00019452,2]
[380014160,1755475840614,-480.0,0.00019452,2]
[380014162,1755475840623,-480.0,0.00019452,2]
[380014164,1755475840633,-264.06837763,0.00019466,2]
[380014166,1755475840642,-151.0,0.00019521,2]
[380014168,1755475840651,-217.57480334,0.00019521,2]
[380014170,1755475840660,-475.0,0.00019521,2]
[380014172,1755475840670,-151.0,0.00019521,2]
[380014174,1755475840679,-151.0,0.00019521,2]
[380014176,1755475840689,-201.65566068,0.00019521,2]
[380014178,1755475840699,-151.0,0.00019521,2]
[380014180,1755475840708,-151.0,0.00019521,2]
[380014182,1755475840718,-151.0,0.00019521,2]
[380014184,1755475840727,-151.0,0.00019521,2]
[380014186,1755475840737,-151.0,0.00019521,2]
[380014188,1755475840747,-198.0,0.00019521,2]
[380014190,1755475840757,-189.19364358,0.00019521,2]
[380014192,1755475840766,-500.0,0.00019521,2]
[380014194,1755475840776,-151.0,0.00019521,2]
[380014196,1755475840786,-151.0,0.00019521,2]
[380014198,1755475840797,-151.0,0.00019521,2]
[380014200,1755475840806,-151.2569465,0.00019521,2]
[380014202,1755475840815,-151.0,0.00019521,2]
[380014204,1755475840824,-151.0,0.00019521,2]
[380014206,1755475840834,-151.0,0.00019521,2]
[380014208,1755475840844,-151.0,0.00019521,2]
[380014209,1755475840853,-239.82997205,0.00019521,2]
[380014211,1755475840862,-200.0,0.00019561,20]
[380014213,1755475840872,-200.0,0.00019561,20]
[380014215,1755475840881,-200.0,0.00019561,20]
[380014217,1755475840891,-200.0,0.00019561,20]
[380014219,1755475840901,-200.0,0.00019561,20]
[380014221,1755475840911,-200.0,0.00019561,20]
[380014223,1755475840920,-200.0,0.00019561,20]
[380014225,1755475840930,-200.0,0.00019561,20]
[380014227,1755475840939,-200.0,0.00019561,20]
[380014230,1755475840949,-200.0,0.00019561,20]
[380014232,1755475840959,-600.0,0.00019561,20]
[380014233,1755475840968,-459.93330802,0.00019588,2]
[380014235,1755475840978,-178.0,0.00019679,2]
[380014238,1755475840988,-178.0,0.0001968,2]
[380014240,1755475840998,-675.38242559,0.00019712,2]
[380014242,1755475841008,-500.0,0.00019725,2]
[380014244,1755475841017,-480.0,0.00019726,2]
[380014246,1755475841026,-480.0,0.00019726,2]
[380014248,1755475841036,-480.0,0.00019726,2]
[380014250,1755475841045,-480.0,0.00019726,2]
[380014251,1755475841055,-193.32584484,0.00019726,2]
[380014252,1755475841064,-718.89,0.00019726,2]
[380014253,1755475841074,-480.0,0.00019726,2]
[380014254,1755475841083,-1379.68,0.00019726,2]
[380014255,1755475841093,-2545.22,0.00019726,2]
[380014256,1755475841103,-480.0,0.00019726,2]
[380014257,1755475841112,-480.0,0.00019726,2]
[380014258,1755475841122,-480.0,0.00019726,2]
[380014259,1755475841131,-480.0,0.00019726,2]
[380014260,1755475841141,-480.0,0.00019726,2]
[380014261,1755475841151,-480.0,0.00019726,2]
[380014262,1755475841161,-480.0,0.00019726,2]
[380014263,1755475841170,-756.18,0.00019726,2]
[380014264,1755475841180,-480.0,0.00019726,2]
[380014265,1755475841189,-1432.26,0.00019726,2]
[380014266,1755475841199,-444.37,0.00019726,2]
[380014267,1755475841209,-403.69377255,0.00019726,2]
[380014268,1755475841219,-480.0,0.00019726,2]
[380014269,1755475841229,-168.0,0.00019733,2]
[380014270,1755475841239,-178.0,0.00019739,2]
[380014271,1755475841249,-1000.0,0.00019758,5]
[380014272,1755475841261,-151.0,0.00019759,2]
[380014273,1755475841271,-151.0,0.00019759,2]
[380014274,1755475841280,-17842.522448,0.00019759,2]